Cogmind - Beta 16 --- EXPLORER MODE // 2025.11.17 @ 19:27:48 Player: ralann Result: Destroyed by X-67 Chaingunner with Minigun Performance ------------- Evolutions (3) 1500 Regions Visited (4) 800 Robots Destroyed (107) 535 Value Destroyed (3555) 3555 Prototype IDs (1) 20 Alien Tech Used (0) 0 Bonus (0) 0 TOTAL SCORE: 6410 Bonus ------- None Cogmind --------- Core Integrity 0/700 Matter 18/450 Energy 400/400 System Corruption 11% Temperature Cool (0) Movement Core (1800) Ox35 Location -7/Factory Parts ------- > --- POWER (2) -------- Micro Nuclear Core Micro Nuclear Core > --- PROPULSION (2) --- (None) > --- UTILITY (5) ------ Huge Storage Unit Large Battery Large Matter Pod Improved Power Shielding Hacking Suite > --- WEAPON (5) ------- Heavy Hammer Heavy Flail > --- INVENTORY (25) --- Wheel Gravmag System Improved Heat Sink Huge Storage Unit Structural Scanner Signal Interpreter Target Analyzer Matter Filter System Restoration Module Recalibrator Recalibrator Autogun Datajack Heavy Hammer Heavy Hammer Peak State ------------ > --- POWER ------------ Micro Nuclear Core Micro Nuclear Core > --- PROPULSION ------- Light Treads > --- UTILITY ---------- Huge Storage Unit Large Battery Large Matter Pod Improved Power Shielding Hacking Suite > --- WEAPON ----------- Gauss Rifle Flak Gun Advanced Assault Cannon Gauss Cannon Mining Claw > --- INVENTORY -------- Wheel Gravmag System Improved Heat Sink Huge Storage Unit Structural Scanner Signal Interpreter Target Analyzer Matter Filter System Restoration Module Recalibrator Recalibrator Shock Rifle Shock Rifle Autogun Assault Cannon Datajack Heavy Hammer Heavy Hammer Heavy Hammer Heavy Flail [Rating: 40] Favorites ----------- Power Light Ion Engine Engine Light Ion Engine Power Core Light Nuclear Core Propulsion Light Treads Treads Light Treads Leg Aluminum Leg Wheel Wheel Hover Unit Hover Unit Utility Huge Storage Unit Device Heat Sink Storage Huge Storage Unit Processor Targeting Computer Hackware Hacking Suite Protection Power Shielding Weapon Assault Cannon Energy Gun Medium Laser Energy Cannon Improved EM Pulse Cannon Ballistic Gun High-powered Shotgun Ballistic Cannon Assault Cannon Launcher Heavy Missile Launcher Impact Weapon Heavy Hammer Slashing Weapon Mining Claw Build | -11 -10 -9 -8 -7 ------- Run | Yrd Mat Mat Mat Fac Slots Evolved 7 | . 1 2 2 2 Power 1 | . . . . 1 Propulsion . | . . . . . Utility 3 | . 1 1 1 . Weapon 3 | . . 1 1 1 Parts Attached 71 | 8 6 16 14 27 Power 12 | 1 . 3 2 6 Engine 8 | 1 . 3 1 3 Core 4 | . . . 1 3 Reactor . | . . . . . Propulsion 14 | 2 2 4 2 4 Treads 6 | 2 . 2 . 2 Leg 4 | . 2 . . 2 Wheel 2 | . . 2 . . Hover 2 | . . . 2 . Flight . | . . . . . Utility 17 | 3 3 3 4 4 Device 4 | 1 . 1 . 2 Storage 6 | 1 1 1 2 1 Processor 1 | 1 . . . . Hackware 2 | . . 1 1 . Protection 4 | . 2 . 1 1 Artifact . | . . . . . Weapon 28 | 2 1 6 6 13 Energy Gun 5 | 1 . . . 4 Energy Cannon 1 | . . . . 1 Ballistic Gun 8 | 1 . 2 3 2 Ballistic Cannon 5 | . 1 . 2 2 Launcher 4 | . . 2 1 1 Special Weapon . | . . . . . Impact Weapon 4 | . . 2 . 2 Slashing Weapon 1 | . . . . 1 Piercing Weapon . | . . . . . Special Melee Weapon . | . . . . . Unidentified Prototypes 1 | . . . 1 . Corrupted Parts 1 | . . 1 . . System Corruption 2 | . . 2 . . Parts Lost 40 | . . 6 6 28 Power 8 | . . 2 1 5 Propulsion 11 | . . 3 2 6 Utility 2 | . . . . 2 Weapon 19 | . . 1 3 15 Highest Loss Streak 7 | . . 3 1 7 To Critical Strikes 2 | . . . 1 1 Average Backups 17 | 4 8 16 17 20 Power 1 | . 1 3 2 1 Propulsion 1 | 1 1 1 . 2 Utility 6 | 2 4 5 6 7 Weapon 6 | . . 6 7 7 Tool/Special . | . . . . . Unused Backups 14 | 1 1 . . 12 Power . | . . . . . Propulsion 2 | . . . . 2 Utility 8 | . 1 . . 7 Weapon 3 | 1 . . . 2 Tool/Special 1 | . . . . 1 Average Slot Usage (%) 88 | . 94 90 92 85 Engine 4 | . 11 9 4 2 Core 5 | . . . 3 8 Treads 5 | . 21 9 1 4 Leg 1 | . . . . 3 Hover 3 | . . . 10 1 Device 2 | . . 6 . 3 Storage 16 | . 12 15 16 17 Hackware 5 | . . . 8 7 Protection 9 | . 18 14 13 4 Energy Gun 2 | . 11 4 . 1 Ballistic Gun 11 | . 5 9 15 11 Ballistic Cannon 7 | . 6 4 6 8 Launcher 1 | . . 5 1 1 Impact Weapon 2 | . . 5 8 . Slashing Weapon 3 | . . . . 6 Peak Build Rating 40 | 7 9 17 30 40 Average Rating 23 | 6 8 12 23 30 On Entrance 12 | . 7 9 17 28 Avg Prop Armor Cover (%) 7 | . . 10 . 7 Naked Turns . | . . . . . Heaviest Build 123 | 17 90 102 111 123 Greatest Support 43 | 40 40 40 40 43 Greatest Overweight (x) 40 | . 5 31 32 40 Average Overweight (x) 5 | . . 4 8 8 Largest Inventory Capacity 25 | 10 25 25 25 25 Average Capacity 23 | 9 15 25 25 25 Most Carried 25 | 6 11 25 22 25 Average Carried 17 | 4 8 16 17 20 Final Capacity 25 | 10 25 25 25 25 Final Carried 20 | 6 11 18 20 15 Class Distribution -------------------- 62% | Hacker-Tank 21% | Hacker-Mutant 16% | Hacker-Gunner Dominant Class ---------------- Hacker-Mutant | -10/Materials Hacker-Mutant | -9/Materials Hacker-Tank | -8/Materials Hacker-Tank | -7/Factory Resources | -11 -10 -9 -8 -7 ----------- Run | Yrd Mat Mat Mat Fac Matter Collected 2519 | 188 199 501 491 1140 Remotely . | . . . . . Salvage Created 3546 | . 131 927 1003 1485 Parts 215 | . 10 56 46 103 Haulers Intercepted 1 | . . . 1 . Recyclers Shooed 10 | . 1 1 6 2 Parts Field Recycled . | . . . . . Retrieved Matter . | . . . . . Parts Self-Destructed . | . . . . . Prevented . | . . . . . Parts Restored . | . . . . . Kills | -11 -10 -9 -8 -7 ------- Run | Yrd Mat Mat Mat Fac Combat Hostiles Destroyed 75 | . 2 22 20 31 Guns 38 | . 1 9 11 17 Cannons 19 | . 1 8 3 7 AOE 18 | . . 5 6 7 Classes Destroyed 12 | . 3 3 4 2 Worker 7 | . . . 1 6 Builder 8 | . . 3 1 4 Hauler 1 | . . . 1 . Recycler 4 | . 1 . 1 2 Operator 1 | . . . 1 . Watcher 11 | . 2 3 2 4 Swarmer 14 | . 2 6 3 3 Grunt 34 | . . 11 12 11 Sentry 12 | . . 5 4 3 Specialist 3 | . . . . 3 Hunter 4 | . . . 1 3 Programmer 8 | . . . . 8 Best Kill Streak 5 | . 2 5 5 5 Combat Bots Only 5 | . 2 5 4 3 Max Kills in Single Turn 3 | . 1 2 2 3 Gunslinging . | . . . . . Exploded 2 | . . 1 2 2 Melee . | . . . . . Uniques/NPCs Destroyed . | . . . . . Combat | -11 -10 -9 -8 -7 -------- Run | Yrd Mat Mat Mat Fac Hostile Shots Fired 831 | . 11 150 138 532 Missed 241 | . 2 45 38 156 Hits 590 | . 9 105 100 376 Projectile 590 | . 9 105 100 376 Critical Strikes 26 | . . 4 3 19 Part Disruptions 1 | . . . . 1 Damage Taken 5315 | . 40 899 943 3433 Core 1045 | . . 163 171 711 Absorbed by Shields 101 | . . . . 101 Redirected to Shielding 180 | . 5 76 16 83 Ignored by Resistances 3329 | . 30 560 579 2160 Core Remaining (%) 81 | 100 100 59 68 . Volleys Fired 194 | . 9 40 52 93 Largest 4 | . 2 3 3 4 Hottest 168 | . 80 100 82 168 Shots Fired 524 | . 16 104 131 273 Gun 312 | . 9 64 86 153 Cannon 168 | . 7 30 25 106 Launcher 44 | . . 10 20 14 Special . | . . . . . Kinetic 403 | . 9 74 111 209 Thermal 33 | . 7 20 . 6 Explosive 14 | . . . . 14 Electromagnetic 74 | . . 10 20 44 Robot Hit Streak 41 | . 8 40 41 27 Robot Miss Streak 5 | . 2 2 5 5 Penetration Max 1 | . . . . 1 Secondary Targets 1 | . . . . 1 Max Gunslinging Chain 1 | . . . . 1 Shots Hit Robots 379 | . 11 79 106 183 Core Hits 216 | . 6 44 59 107 Critical Kills . | . . . . . Critical Parts Destroyed 2 | . . . 1 1 Critical Strikes 11 | . 2 2 2 5 Burn 5 | . 2 2 . 1 Destroy 1 | . . . . 1 Blast 4 | . . . 1 3 Smash 1 | . . . 1 . Melee Attacks 11 | . . . 7 4 Impact 7 | . . . 7 . Slashing 4 | . . . . 4 Piercing . | . . . . . Sneak Attacks 7 | . . . 3 4 Combat Hostiles . | . . . . . Follow-up Attacks . | . . . . . Damage Inflicted 8657 | . 176 1346 2453 4682 Guns 3963 | . 103 569 1066 2225 Cannons 2257 | . 65 410 336 1446 Explosions 1882 | . . 352 707 823 Melee 532 | . . . 344 188 Ramming 23 | . 8 15 . . Kinetic 5251 | . 80 769 1402 3000 Thermal 600 | . 88 281 68 163 Explosive 745 | . . . . 745 Electromagnetic 1506 | . . 281 639 586 Impact 344 | . . . 344 . Slashing 188 | . . . . 188 Piercing . | . . . . . Highest Corruption 11 | . . 2 . 11 Average Corruption 9 | . . 2 . 9 Corruption Purged . | . . . . . Corruption Blocked . | . . . . . Effects 76 | . . . . 76 Message Errors 16 | . . . . 16 Matter Fused 17 | . . . . 17 Heat Flow Errors 12 | . . . . 12 Energy Discharges 12 | . . . . 12 Data Loss (minor) 7 | . . . . 7 Data Loss (major) 5 | . . . . 5 Misfires 2 | . . . . 2 Alerts 2 | . . . . 2 Weapon Failures 3 | . . . . 3 Overload Shots . | . . . . . Overflow Damage 270 | . . . 138 132 Projectiles 77 | . . . 1 76 Explosions 55 | . . . 30 25 Melee 138 | . . . 107 31 Knockbacks 17 | . . 2 5 10 Impact 2 | . . . 2 . Kinetic 15 | . . 2 3 10 Secondary . | . . . . . Self-Inflicted Damage 154 | . . 38 42 74 Shots 13 | . . 4 6 3 Rammed 5 | . 2 3 . . Targets Rammed 5 | . 2 3 . . Kicked . | . . . . . Crushed . | . . . . . Highest Temperature 523 | . 36 150 165 523 Average Temperature 91 | . 13 39 44 120 Received Heat Transfer 2103 | . . 603 666 834 Effects 19 | . . . . 19 Shutdowns 4 | . . . . 4 Energy Bleed 1 | . . . . 1 Interference 12 | . . . . 12 Short Circuit 1 | . . . . 1 Damage (minor) 1 | . . . . 1 Siege Activations . | . . . . . Martial Activations . | . . . . . Shielding Activations . | . . . . . Robots Disrupted . | . . . . . Combat Hostiles . | . . . . . Robots Corrupted 3 | . . . 3 . Combat Hostiles . | . . . . . Parts Fried 4 | . . 1 3 . Impact Corruptions 6 | . . . 6 . Robots Melted . | . . . . . Combat Hostiles . | . . . . . Parts Melted 1 | . . 1 . . Heat Transferred 1643 | . 407 877 100 259 Parts Sabotaged . | . . . . . Parts Stolen . | . . . . . Parts Stripped . | . . . . . Power Chain Reactions 9 | . . 5 3 1 Alert | -11 -10 -9 -8 -7 ------- Run | Yrd Mat Mat Mat Fac Maximum Alert Level 1 | . . 1 . . Low Security (%) 99 | 100 100 99 100 100 Level 1 . | . . . . . Level 2 . | . . . . . Level 3 . | . . . . . Level 4 . | . . . . . Level 5 . | . . . . . High Security . | . . . . . Max Security . | . . . . . Peak Influence 209 | . 35 209 148 80 Initial . | . . . . . Average 16 | . 1 69 14 6 Influence Increases 2471 | . 72 711 608 1080 Destroy 0b10 Robot/C 1500 | . 40 440 400 620 Destroy 0b10 Robot/NC 160 | . 15 30 35 80 Destroy Leader 454 | . 14 126 116 198 Successful Hack 2 | . 2 . . . Disable Machine 40 | . . 8 8 24 Destroy Structure 135 | . 1 17 19 98 Lose Combat Pursuer 180 | . . 90 30 60 Influence Decreases 2471 | . 72 711 608 1080 Time Decay 2263 | . 72 651 548 992 Lost Part 208 | . . 60 60 88 Squads Dispatched 24 | . . 2 6 16 Investigation 1 | . . . . 1 Extermination 8 | . . . . 8 Reinforcement 12 | . . 2 3 7 Assault . | . . . . . Garrison 3 | . . . 3 . Intercept . | . . . . . Searches Triggered . | . . . . . Construction Impeded 1 | . . . 1 . Haulers Reinforced 1 | . . . . 1 Active Scanning Responses . | . . . . . Cargo Convoy Interrupts 1 | . . . . 1 Stealth | -11 -10 -9 -8 -7 --------- Run | Yrd Mat Mat Mat Fac Distress Signals 7 | . . 5 1 1 Communications Jammed . | . . . . . Distress Signals . | . . . . . Times Spotted 117 | . 6 30 35 46 Peak Tracking Total 6 | . 2 6 5 6 Tactical Retreats 10 | . . 4 2 4 Traps | -11 -10 -9 -8 -7 ------- Run | Yrd Mat Mat Mat Fac Traps Triggered 10 | . 5 3 . 2 Indirectly 1 | . . 1 . . Trap Hack Attempts . | . . . . . Triggered . | . . . . . Disarmed . | . . . . . Reprogrammed . | . . . . . Reused . | . . . . . Traps Extracted . | . . . . . Installed . | . . . . . Triggered . | . . . . . Machines | -11 -10 -9 -8 -7 ---------- Run | Yrd Mat Mat Mat Fac Machines Disabled 10 | . . 2 2 6 Max in Single Turn 1 | . . 1 1 1 Machines Repaired . | . . . . . Machines Dismantled . | . . . . . Machines Sabotaged . | . . . . . Overloaded Fab Kills . | . . . . . Hacking | -11 -10 -9 -8 -7 --------- Run | Yrd Mat Mat Mat Fac Machines Accessed 2 | . 2 . . . Terminals 2 | . 2 . . . Fabricators . | . . . . . Repair Stations . | . . . . . Recycling Units . | . . . . . Scanalyzers . | . . . . . Garrison Access . | . . . . . Total Hacks 6 | . 6 . . . Successful 5 | . 5 . . . Failed 1 | . 1 . . . Catastrophic . | . . . . . Database Lockouts . | . . . . . Manual . | . . . . . Terminals 6 | . 6 . . . Fabricators . | . . . . . Repair Stations . | . . . . . Recycling Units . | . . . . . Scanalyzers . | . . . . . Garrison Access . | . . . . . Terminal Hacks 5 | . 5 . . . Record 2 | . 2 . . . Emergency Access Points 1 | . 1 . . . Alert Level 1 | . 1 . . . Dispatch Records 1 | . 1 . . . Fabricator Hacks . | . . . . . Repair Station Hacks . | . . . . . Recycling Unit Hacks . | . . . . . Scanalyzer . | . . . . . Garrison Access Hacks . | . . . . . Unauthorized Hacks . | . . . . . Terminals . | . . . . . Fabricators . | . . . . . Repair Stations . | . . . . . Recycling Units . | . . . . . Scanalyzers . | . . . . . Garrison Access . | . . . . . Data Cores Recovered . | . . . . . Used . | . . . . . Hacking Detections 1 | . 1 . . . Full Trace Events . | . . . . . Feedback Events . | . . . . . Feedback Blocked . | . . . . . Robot Schematics Acquired . | . . . . . Robots Built . | . . . . . Authchips . | . . . . . Time . | . . . . . Total Robot Build Rating . | . . . . . Part Schematics Acquired . | . . . . . Parts Built . | . . . . . Authchips . | . . . . . Time . | . . . . . Total Part Build Rating . | . . . . . Part Studies Acquired . | . . . . . Parts Repaired . | . . . . . Time . | . . . . . Parts Recycled . | . . . . . Recycled Matter . | . . . . . Retrieved Matter . | . . . . . Retrieved Components . | . . . . . Parts Scanalyzed . | . . . . . Part Schematics Acquired . | . . . . . Parts Damaged . | . . . . . Bothacking | -11 -10 -9 -8 -7 ------------ Run | Yrd Mat Mat Mat Fac Used RIF Installer . | . . . . . Robots Hacked . | . . . . . Non-combat . | . . . . . Combat . | . . . . . Robot Hacks Applied . | . . . . . Relay Couplers Released . | . . . . . Fabnet Peak Effective % . | . . . . . Robots Rewired . | . . . . . Allies Hacked . | . . . . . Hacks Repelled . | . . . . . Allies | -11 -10 -9 -8 -7 -------- Run | Yrd Mat Mat Mat Fac Total Allies . | . . . . . Largest Group . | . . . . . Highest-Rated Group . | . . . . . Highest-Rated Ally . | . . . . . Total Orders . | . . . . . Ally Attacks . | . . . . . Total Damage . | . . . . . Kills . | . . . . . Allies Corrupted . | . . . . . Allies Melted . | . . . . . Intel | -11 -10 -9 -8 -7 ------- Run | Yrd Mat Mat Mat Fac Active Infowar (turns) 806 | 5 . 801 . . Structural 806 | 5 . 801 . . Robot Analysis Total . | . . . . . Derelict Logs Recovered . | . . . . . Drone Launches . | . . . . . Drone Recoveries . | . . . . . Exploration | -11 -10 -9 -8 -7 ------------- Run | Yrd Mat Mat Mat Fac Turns Passed 9660 | 220 770 1198 2526 4946 Spaces Moved 1875 | 74 335 377 382 707 Core 133 | 30 14 15 12 62 Treads 921 | 44 317 137 63 360 Legs 219 | . 4 . . 215 Wheels 225 | . . 225 . . Hover 377 | . . . 307 70 Flight . | . . . . . Fastest Speed 50 | 50 120 140 320 320 Average Speed 464 | 115 210 269 607 647 Slowest Speed 2050 | 160 480 1600 1650 2050 Overloaded Moves . | . . . . . Propulsion Burnouts . | . . . . . Robots Hopped . | . . . . . Potential Cave-ins . | . . . . . Cave-ins Triggered . | . . . . . Exploration Rate (%) 25 | 4 39 35 30 19 Regions Visited 4 Branch Regions . Pre-discovered Areas . | . . . . . Known Exits Taken 4 | 1 1 1 1 . Unknown Exits Taken . | . . . . . Scrap Searched . | . . . . . Spaces Dug . | . . . . . Terrain Destroyed 152 | . . 19 18 115 Melee . | . . . . . Projectile 14 | . . . 5 9 AOE 138 | . . 19 13 106 Terrain Rammed . | . . . . . Walls Destroyed . | . . . . . Machines Disabled . | . . . . . Actions | -11 -10 -9 -8 -7 --------- Run | Yrd Mat Mat Mat Fac Total 2414 | 210 376 476 477 875 Wait 129 | 114 3 2 10 . Move 1871 | 73 334 376 381 707 Hop . | . . . . . Pick Up 93 | 14 16 25 11 27 Fast Attach . | . . . . . Attach 66 | 7 10 13 10 26 Detach 1 | . . . 1 . Swap 21 | 1 1 9 4 6 Drop 18 | 1 1 8 1 7 Fire 194 | . 9 40 52 93 Melee 11 | . . . 7 4 Ram . | . . . . . Kick . | . . . . . Crush 5 | . 2 3 . . Escape Stasis 5 | . . . . 5 Rewire . | . . . . . Trap . | . . . . . Miscellaneous . | . . . . . Route ------- -11/Scrapyard -10/Materials (discovered 2 exits: *Mat / *Min) -9/Materials -8/Materials -7/Factory History --------- Turn | Location | Event 10 | -11/Scrapyard | Identified exit to Materials 10 | -11/Scrapyard | Discovered exit to Materials (range 15) 221 | -11/Scrapyard | Entered Materials 221 | -10/Materials | Evolved 1 slot: Utility x1 318 | -10/Materials | Build established: Hacker-Mutant 471 | -10/Materials | Identified exit to Mines 471 | -10/Materials | Discovered exit to Mines (range 15) 913 | -10/Materials | Identified exit to Materials 913 | -10/Materials | Discovered exit to Materials (range 5) 991 | -10/Materials | Entered another Materials area 991 | -9/Materials | Evolved 2 slots: Utility x1, Weapon x1 1287 | -9/Materials | Build established: Hacker-Tank 1503 | -9/Materials | Lost 3 parts (1p1n1w) 1851 | -9/Materials | Identified exit to Materials 1851 | -9/Materials | Discovered exit to Materials (range 16) 1867 | -9/Materials | Build established: Hacker-Mutant 1929 | -9/Materials | Lost 3 parts (1p2n) 2189 | -9/Materials | Entered another Materials area 2189 | -8/Materials | Evolved 2 slots: Utility x1, Weapon x1 2453 | -8/Materials | Garrison activated, responded to threat 2571 | -8/Materials | Garrison activated, responded to threat 3040 | -8/Materials | Build established: Hacker-Tank 3922 | -8/Materials | Garrison activated, responded to threat 4692 | -8/Materials | Identified exit to Factory 4692 | -8/Materials | Discovered exit to Factory (range 4) 4715 | -8/Materials | Entered Factory 4715 | -7/Factory | Evolved 2 slots: Power x1, Weapon x1 5736 | -7/Factory | Cargo convoy interrupted 6450 | -7/Factory | Lost 3 parts (1n1u1w) 6711 | -7/Factory | Build established: Hacker-Gunner 7298 | -7/Factory | Lost 4 parts (1p1n1u1w) 8001 | -7/Factory | System corruption reached 10% 8414 | -7/Factory | Build established: Hacker-Tank 9575 | -7/Factory | Core integrity fell below 50% 9641 | -7/Factory | Core integrity fell below 20% 9661 | -7/Factory | Destroyed by X-67 Chaingunner with Minigun Last Messages --------------- System corrupted: Component data lost. U-05 Engineer builds a Wall. Mining Claw destroyed. System corrupted: Matter fused (-5). X-67 Chaingunner Weapon Cycler blasted off. System corrupted: Adv. Assault Cannon jammed. Slug penetrates X-67 Chaingunner. Gauss Rifle destroyed. Adv. Assault Cannon destroyed. Critical hit (Destroy). Gauss Cannon destroyed. Flak Gun destroyed. [Achievement: Hydra] System corrupted: Matter fused (-8). ALERT: Potential suspicious activity detected, Programmers report to Factory Zone 9D. [Achievement: Oops] Assault Cannon destroyed. Shock Rifle destroyed. [Achievement: 5k Club] Map ----- +----------------------------------------------------+ | ???????????????????????????????????????????????? | | ???????????????????????????????????????????????? | | ???????????????????????????????????????????????? | | ???????????????????????????????????????????????? | | ???????????????????????????????????????????????? | | ???????????????????????????????????????????????? | | ???????????????????????????????????????????????? | | ???????????????????????????????????????????????? | | ???????????????????????????????????????????????? | | ???????????????????????????????????????????????? | | ???????????????????????????????????????????????? | | ???????????????????????????????????????????????? | | ???????????????????????????????????????????????? | | ???????????????????????????????????????????????? | | ???????????????????????????????????????????????? | | ??????????????????????????????????????H????????? | | ???????????????????????????????? ??????????????? | | ?????????????????????????"?"#??? ??????????????? | | ?????????????????????????"?"#?? ???????????????? | | ????????????????????????? ?"#?#+#??????????????? | | ????????????????????????? ?%# ???????????????? | | ?????????????????????######=#!!????????????????? | | ?????????????????????# %[xx#!?????????????????? | | ?????????????????????#"" !=%+??????????????????? | | ?????????????????????#"" %*%#??????????????????? | | ?????????????????????#"" @ [#??????????????????? | | ?????????????????????#"" #??????????????????? | | ??????????####+####??# =#??###?#???????????? | | ??????????# #######s###?! #???????????? | | ??????????# ^ #! """#???????????? | | ??????????# ^^ # R"#???????????? | | ??????????# """""" x + """#???????????? | | ??????????# """""" # +???????????? | | ??????????# """""" # ! ! #??H????????? | | ??????????# ^ """""" ###?######???????????? | | ########### ^ #????????????????????? | | ^"""""" #????????????????????? | | """""" #????????????????????? | | ^"""""" #????????????????????? | | ^ """""" #????????????????????? | | ############ #????????????????????? | | +?????????# ] #????????????????????? | | #?????????## #????????????????????? | | #??????????# ??????????????? | | #??????????# #########+## ] #???????????????? | | #??????????# ## ?????? #? ##???????????????? | | #??????????# #? ""??????#??#????????????????? | | #??????????# #??"""?????????????????????????? | | #??????????# #???""?????????????????????????? | | #??????????# #??????????????????????????????? | +----------------------------------------------------+ Best States ------------- Heat Dissipation 44 Energy Generation 25 Energy Capacity 750 Matter Stores 324 Matter Capacity 450 Sight Range 16 Terrain Scan Density 10 Armor Coverage 150 Resistance: KI 35 Resistance: TH 35 Resistance: EX 35 Resistance: EM 35 Resistance: I 35 Resistance: S 35 Resistance: P 35 Power Shielding 66 Propulsion Shielding 33 Evasion (%) 50 Targeting Accuracy 5 Recoil Reduction 2 Offensive Hacking 30 Item Schematics ----------------- None Robot Schematics ------------------ None Fabricated ------------ Nothing Repaired ---------- Nothing Studied --------- None Alien Tech Used ----------------- None Achievements -------------- 5k Club A Problem For Future Me Ghost 'Em Heavy Suspicion Hey, That's Mine! Hydra Jackpot Let's See Who's Tougher Made in Tau Ceti IV Oops Organ Harvest Overwhelming Please Form A Line Power Corrupts Resistances Are Futile Risk Taker Storm Trooper System Compromised Troublemaker Uninvited Guest Well Done Challenges ------------ None Game ------ Seed DecoyRecyclingDeflector Manual? 0 Play Time 01:09:37 Cumulative 2.4 hours Start 2025.11.16 @ 21:37:05 End 2025.11.17 @ 19:27:48 Sessions 9 Manual Loads 0 Difficulty Explorer Special Mode None Game No. 6 Rogue 0 Adventurer 0 Explorer 6 Win Type - Total 0 Types 0/0/0/0/0/0/0/0/0/0 Lore% 0 Gallery% 4 Achievement% 5 Wizard Run 0 Options --------- Layout 1 ASCII 0 Keyboard 0 Movement Numpad Keybinds 0 Fullscreen 1 Font 16/X11Caps Map View 25x20 Zoom Use 96% Tactical HUD 0 Map Filters NONE Filters NONE Steam SD RUN: f162d2b9-84af-44b5-9b64-b945ca48409f